fUSD/lending_fUSD_20250108
["ID","MTS","AMOUNT","RATE_DAILY","PERIOD"]
[348133795,1736349053466,-500.0,0.0001098,2]
[348133796,1736349053478,-151.0,0.0001098,2]
[348133797,1736349053488,-500.0,0.0001098,2]
[348133798,1736349053498,-500.0,0.0001098,2]
[348133799,1736349053508,-500.0,0.0001098,2]
[348133800,1736349053517,-714.42,0.0001098,2]
[348133801,1736349053527,-500.0,0.0001098,2]
[348133802,1736349053537,-151.0,0.0001098,2]
[348133803,1736349053547,-500.0,0.0001098,2]
[348133804,1736349053557,-504.2,0.0001098,2]
[348133805,1736349053567,-500.0,0.0001098,2]
[348133806,1736349053577,-1917.71,0.0001098,2]
[348133807,1736349053587,-500.0,0.0001098,2]
[348133808,1736349053596,-3686.07,0.0001098,2]
[348133809,1736349053606,-500.0,0.0001098,2]
[348133810,1736349053619,-500.0,0.0001098,2]
[348133811,1736349053628,-500.0,0.0001098,2]
[348133812,1736349053639,-500.0,0.0001098,2]
[348133813,1736349053648,-500.0,0.0001098,2]
[348133814,1736349053658,-3390.06,0.0001098,2]
[348133815,1736349053668,-500.0,0.0001098,2]
[348133816,1736349053678,-500.0,0.0001098,2]
[348133817,1736349053689,-2650.65,0.0001098,2]
[348133818,1736349053699,-902.92,0.0001098,2]
[348133819,1736349053709,-517.67,0.0001098,2]
[348133820,1736349053719,-500.0,0.0001098,2]
[348133821,1736349053731,-500.0,0.0001098,2]
[348133822,1736349053740,-3156.02,0.0001098,2]
[348133823,1736349053751,-500.0,0.0001098,2]
[348133824,1736349053764,-500.0,0.0001098,2]
[348133825,1736349053774,-500.0,0.0001098,2]
[348133826,1736349053784,-500.0,0.0001098,2]
[348133827,1736349053795,-642.86,0.0001098,2]
[348133828,1736349053805,-500.0,0.0001098,2]
[348133829,1736349053815,-500.0,0.0001098,2]
[348133830,1736349053826,-500.0,0.0001098,2]
[348133831,1736349053836,-709.58,0.0001098,2]
[348133832,1736349053846,-500.0,0.00010984,2]
[348133833,1736349053856,-500.0,0.00010986,2]
[348133834,1736349053866,-168.37445796,0.00010998,2]
[348133835,1736349053877,-670.18499226,0.00010998,2]
[348133836,1736349053887,-666.0,0.00010998,2]
[348133837,1736349053898,-38399.30723739,0.00010999,2]
[348133838,1736349053908,-78311.73,0.00010999,2]
[348133839,1736349053918,-5458.5,0.00011,2]
[348133840,1736349053928,-615453.15536383,0.00011,2]
[348133841,1736349054428,-2314605.63804172,0.00011,2]
[348133842,1736349054440,-774.6985844,0.00011,2]
[348133843,1736349054451,-8692.9895,0.00011,2]
[348133844,1736349054463,-10747.539253,0.00011,2]
[348133845,1736349054484,-3034.34747374,0.00011,2]
[348133846,1736349054532,-3588.6162578,0.00011,2]
[348133847,1736349054543,-6879.04191615,0.00011,2]
[348133848,1736349055088,-1572.82,9.985e-05,2]
[348133849,1736349055098,-500.0,0.00010157,2]
[348133850,1736349055107,-500.0,0.00010431,2]
[348133851,1736349055117,-500.0,0.00010705,2]
[348133852,1736349055127,-7500.0,0.00010958,2]
[348133853,1736349055137,-369.8935776,0.00010958,2]
[348133854,1736349055150,-7130.1064224,0.00010958,2]
[348133855,1736349055159,-2059.8935775,0.00010958,2]
[348133856,1736349055172,-250.78536569,0.00010958,2]
[348133857,1736349055184,-1034.3555,0.00010958,2]
[348133858,1736349055195,-4154.96555681,0.00010958,2]
[348133859,1736349055205,-7500.0,0.00010958,2]
[348133860,1736349055215,-7020.12601955,0.00011,2]
[348133861,1736349055227,-2846.8501905,0.00011,2]
[348133862,1736349055238,-800.86626729,0.00011,2]
[348133863,1736349055249,-167802.16780998,0.00011,2]
[348133864,1736349055259,-41035.00750706,0.00011,2]
[348133865,1736349055271,-308916.43891344,0.00011,2]
[348133866,1736349055282,-669.99823175,0.00011,2]
[348133867,1736349055293,-1024.40731465,0.00011,2]
[348133868,1736349055310,-4220.74957971,0.00011,2]
[348133869,1736349055321,-36978.35314166,0.00011,2]
[348133870,1736349055332,-11782.01652183,0.00011,2]
[348133871,1736349055343,-15496.3904939,0.00011,2]
[348133872,1736349055354,-6229.36169738,0.00011,2]
[348133873,1736349055365,-24008.98817196,0.00011,2]
[348133874,1736349055376,-487.73359545,0.00011,2]
[348133875,1736349055388,-827.20873947,0.00011,2]
[348133876,1736349055400,-373804.53825358,0.00011,2]
[348133877,1736349055419,-1572.82,0.00010259,2]
[348133878,1736349055429,-222401.36338855,0.00011,2]
[348133879,1736349055439,-21951.74294704,0.00011,2]
[348133880,1736349055452,-361.45361106,0.00011,2]
[348133881,1736349055463,-279.714,0.00011,2]
[348133882,1736349055477,-44796.00034188,0.00011,2]
[348133883,1736349055511,-500.0,0.00010273,2]
[348133884,1736349055522,-7500.0,0.00010958,2]
[348133885,1736349055532,-500.0,0.00010979,2]
[348133886,1736349055542,-83782.9591629,0.00011,2]
[348133887,1736349055555,-491.71438045,0.00011,2]
[348133888,1736349055566,-451.63100164,0.00011,2]
[348133889,1736349055812,-410.0,0.00010158,2]
[348133890,1736349055823,-90.0,0.00010158,2]
[348133891,1736349055833,-1572.82,0.00010533,2]
[348133892,1736349055843,-1572.82,0.00010807,2]
[348133893,1736349055853,-13414.36,0.00011,2]
[348133894,1736349055864,-9514.47,0.00011,2]
[348133895,1736349055875,-16098.05822187,0.00011,2]
[348133896,1736349055887,-556.27274948,0.00011,2]
[348133897,1736349055910,-9309.10477623,0.00011,2]
[348133898,1736349055921,-693.71658246,0.00011,2]
[348133899,1736349055933,-4647.77442738,0.00011,2]
[348133900,1736349055952,-957.52,0.00011,2]
[348133901,1736349055964,-302.0,0.00011,2]
[348133902,1736349055979,-837.98971648,0.00011,2]
[348133903,1736349055998,-2311.15422592,0.00011,2]
[348133904,1736349056011,-522.01898272,0.00011,2]
[348133905,1736349056025,-3900.75776183,0.00011,2]
[348133906,1736349056038,-431.885,0.00011,2]
[348133907,1736349056079,-1939.85646933,0.00011,2]
[348133908,1736349056091,-22689.24108983,0.00011,2]
[348133909,1736349056102,-13038.5,0.00011,2]
[348133910,1736349056114,-1600.0,0.00011,2]
[348133911,1736349056126,-519.71273587,0.00011,2]
[348133912,1736349056139,-16635.03002784,0.00011,2]
[348133913,1736349056148,-1000.0,0.00011,2]
[348133914,1736349056157,-1562.27774162,0.00011,2]
[348133915,1736349056177,-12500.90116804,0.00011,2]
[348133916,1736349056189,-6800.0,0.00011,2]
[348133917,1736349056200,-2358.24575304,0.00011,2]
[348133918,1736349056212,-13962.22084,0.00011,2]
[348133919,1736349056225,-16166.72813311,0.00011,2]
[348133920,1736349056237,-1874.0697,0.00011,2]
[348133921,1736349056249,-77140.27966599,0.00011,2]
[348133922,1736349056260,-12783.34003575,0.00011,2]
[348133923,1736349056270,-29477.77693745,0.00011,2]
[348133924,1736349056280,-300.0,0.00011,2]
[348133925,1736349056292,-550.0,0.00011,2]
[348133926,1736349056302,-151.0,0.00011,2]
[348133927,1736349056312,-151.0,0.00011,2]
[348133928,1736349056323,-151.0,0.00011,2]
[348133929,1736349056333,-151.0,0.00011,2]
[348133930,1736349056343,-151.0,0.00011,2]
[348133931,1736349056354,-151.0,0.00011,2]
[348133932,1736349056363,-1000.0,0.00011016,2]
[348133933,1736349056373,-426.64448109,0.00011079,2]
[348133934,1736349056383,-500.0,0.0001108,2]
[348133935,1736349056393,-500.0,0.0001108,2]
[348133936,1736349056402,-500.0,0.0001108,2]
[348133937,1736349056412,-500.0,0.0001108,2]
[348133938,1736349056421,-500.0,0.0001108,2]
[348133939,1736349056431,-500.0,0.0001108,2]
[348133940,1736349056440,-638.94,0.0001108,2]
[348133941,1736349056450,-775.08,0.0001108,2]
[348133942,1736349056460,-500.0,0.0001108,2]
[348133943,1736349056469,-873.19,0.0001108,2]
[348133944,1736349056480,-500.0,0.0001108,2]
[348133945,1736349056490,-598.51,0.0001108,2]
[348133946,1736349056499,-500.0,0.0001108,2]
[348133947,1736349056510,-777.0,0.0001108,2]
[348133948,1736349056519,-851.02,0.0001108,2]
[348133949,1736349056529,-500.0,0.0001108,2]
[348133950,1736349056539,-500.0,0.0001108,2]
[348133951,1736349056549,-195.14573172,0.0001108,2]
[348133952,1736349056559,-500.0,0.0001108,2]
[348133953,1736349056569,-500.0,0.0001108,2]
[348133954,1736349056578,-500.0,0.0001108,2]
[348133955,1736349056590,-630.25,0.0001108,2]
[348133956,1736349056599,-500.0,0.0001108,2]
[348133957,1736349056609,-500.0,0.0001108,2]
[348133958,1736349056622,-616.38,0.0001108,2]
[348133959,1736349056633,-153.95,0.0001108,2]
[348133960,1736349056644,-985.65,0.0001108,2]
[348133961,1736349056654,-500.0,0.0001108,2]
[348133962,1736349056666,-151.0,0.0001108,2]
[348133963,1736349056677,-744.19,0.0001108,2]
[348133964,1736349056688,-811.38,0.0001108,2]
[348133965,1736349056699,-500.0,0.0001108,2]
[348133966,1736349056710,-500.0,0.0001108,2]
[348133967,1736349056721,-500.0,0.00011081,2]
[348133968,1736349056736,-500.0,0.00011081,2]
[348133969,1736349056746,-2633.32,0.00011081,2]
[348133970,1736349056759,-500.0,0.00011081,2]
[348133971,1736349056770,-500.0,0.00011081,2]
[348133972,1736349056782,-1212.18,0.00011081,2]
[348133973,1736349056794,-4771.31,0.00011081,2]
[348133974,1736349056804,-3890.61,0.00011081,2]
[348133975,1736349056814,-500.0,0.00011081,2]
[348133976,1736349056824,-500.0,0.00011081,2]
[348133977,1736349056834,-1830.34,0.00011081,2]
[348133978,1736349056843,-3855.11,0.00011081,2]
[348133979,1736349056852,-1812.63,0.00011081,2]
[348133980,1736349056862,-1014.64,0.00011081,2]
[348133981,1736349056872,-603.76,0.00011081,2]
[348133982,1736349056882,-932.35,0.00011081,2]
[348133983,1736349056892,-1549.08,0.00011081,2]
[348133984,1736349056902,-1568.67,0.00011081,2]
[348133985,1736349056912,-1014.64,0.00011082,2]
[348133986,1736349056921,-1438.04,0.00011082,2]
[348133987,1736349056931,-1344.71,0.00011082,2]
[348133988,1736349056941,-2949.85,0.00011082,2]
[348133989,1736349056951,-1660.4,0.00011082,2]
[348133990,1736349056960,-4059.98,0.00011082,2]
[348133991,1736349056970,-2296.67,0.0001109,2]
[348133992,1736349056983,-1407.44,0.0001109,2]
[348133993,1736349056992,-944.42,0.0001109,2]
[348133994,1736349057001,-500.0,0.0001109,2]
[348133995,1736349057012,-1229.65,0.0001109,2]
[348133996,1736349057022,-3008.65,0.0001109,2]
[348133997,1736349057032,-1476.15,0.00011091,2]
[348133998,1736349057042,-763.26,0.00011091,2]
[348133999,1736349057051,-628.14,0.00011091,2]
[348134000,1736349057061,-610.14,0.00011091,2]
[348134001,1736349057072,-500.0,0.00011091,2]
[348134002,1736349057081,-915.32,0.00011091,2]
[348134003,1736349057090,-500.0,0.00011091,2]
[348134004,1736349057100,-722.85,0.00011091,2]
[348134005,1736349057109,-1592.84,0.00011091,2]
[348134006,1736349057119,-500.0,0.00011091,2]
[348134007,1736349057128,-848.12,0.00011091,2]
[348134008,1736349057137,-1659.06,0.00011091,2]
[348134009,1736349057147,-1489.01,0.00011091,2]
[348134010,1736349057156,-1000.0,0.00011091,2]
[348134011,1736349057166,-3191.21,0.00011091,2]
[348134012,1736349057177,-933.34,0.00011091,2]
[348134013,1736349057186,-7532.55,0.00011091,2]
[348134014,1736349057195,-500.0,0.00011091,2]
[348134015,1736349057205,-2156.58,0.00011091,2]
[348134016,1736349057215,-702.98,0.00011091,2]
[348134017,1736349057224,-2185.02,0.00011091,2]
[348134018,1736349057235,-568.99,0.00011091,2]
[348134019,1736349057244,-3720.21,0.00011091,2]
[348134020,1736349057254,-500.0,0.00011091,2]
[348134021,1736349057264,-822.66,0.00011091,2]
[348134022,1736349057273,-1170.63,0.00011091,2]
[348134023,1736349057283,-1467.53,0.00011091,2]
[348134024,1736349057293,-884.17,0.00011091,2]
[348134025,1736349057303,-150.0,0.00011095,2]
[348134026,1736349057312,-1231.40685753,0.00011099,2]
[348134027,1736349057321,-1231.40685746,0.00011099,2]
[348134028,1736349057330,-1231.40685746,0.00011099,2]
[348134029,1736349057339,-1231.40685746,0.00011099,2]
[348134030,1736349057349,-1231.40685746,0.00011099,2]
[348134031,1736349057359,-1231.40685746,0.00011099,2]
[348134032,1736349057368,-1231.40685746,0.00011099,2]
[348134033,1736349057378,-1231.40685746,0.00011099,2]
[348134034,1736349057387,-1231.40685746,0.00011099,2]
[348134035,1736349057397,-1231.40685746,0.00011099,2]
[348134036,1736349057406,-204.13309621,0.000111,2]
[348134037,1736349057415,-500.0,0.00011121,2]
[348134038,1736349057425,-587.0,0.00011137,2]
[348134039,1736349057435,-150.0,0.00011232,2]
[348134040,1736349057445,-1399.42,0.00011241,2]
[348134041,1736349057454,-2084.31,0.00011241,2]
[348134042,1736349057463,-1385.09,0.00011241,2]
[348134043,1736349057473,-426.64448109,0.00011241,2]
[348134044,1736349057484,-1093.48,0.00011241,2]
[348134045,1736349057494,-1097.572277,0.00011241,2]
[348134046,1736349057503,-1319.919364,0.00011241,2]
[348134047,1736349057512,-3771.05,0.00011241,2]
[348134048,1736349057713,-500.0,0.00011252,2]
[348134049,1736349057724,-500.0,0.00011252,2]
[348134050,1736349057739,-1910.15,0.00011253,2]
[348134051,1736349057751,-577.27,0.00011253,2]
[348134052,1736349057767,-2017.44,0.00011253,2]
[348134053,1736349057779,-4797.45,0.00011253,2]
[348134054,1736349057790,-500.0,0.00011253,2]
[348134055,1736349057801,-867.59,0.00011253,2]
[348134056,1736349057812,-824.65,0.00011253,2]
[348134057,1736349057822,-1139.85,0.00011253,2]
[348134058,1736349057832,-1719.33,0.00011253,2]
[348134059,1736349057842,-500.0,0.00011253,2]
[348134060,1736349057852,-635.6,0.00011253,2]
[348134061,1736349057862,-1933.87,0.00011253,2]
[348134062,1736349057872,-3085.15,0.00011253,2]
[348134063,1736349057881,-963.79,0.00011253,2]
[348134064,1736349057890,-500.0,0.00011253,2]
[348134065,1736349057900,-1516.5,0.00011253,2]
[348134066,1736349057910,-592.06,0.00011253,2]
[348134067,1736349057919,-1435.2,0.00011253,2]
[348134068,1736349057928,-622.93,0.00011253,2]
[348134069,1736349057939,-1121.6,0.00011253,2]
[348134070,1736349057949,-816.26,0.00011253,2]
[348134071,1736349057959,-2446.41,0.00011253,2]
[348134072,1736349057969,-1353.2,0.00011253,2]
[348134073,1736349057980,-966.64,0.00011253,2]
[348134074,1736349057989,-500.0,0.00011253,2]
[348134075,1736349057999,-500.0,0.00011253,2]
[348134076,1736349058009,-1581.87,0.00011253,2]
[348134077,1736349058020,-500.0,0.00011253,2]
[348134078,1736349058030,-152.25203982,0.00011254,2]
[348134079,1736349058043,-347.74796018,0.00011254,2]
[348134080,1736349058053,-500.0,0.00011254,2]
[348134081,1736349058063,-545.82,0.00011254,2]
[348134082,1736349058072,-500.0,0.00011254,2]
[348134083,1736349058082,-361.60195772,0.00011254,2]
[348134084,1736349058094,-138.39804228,0.00011254,2]
[348134085,1736349058103,-511.28,0.00011254,2]
[348134086,1736349058112,-500.0,0.00011254,2]
[348134087,1736349058122,-500.0,0.00011254,2]
[348134088,1736349058131,-500.0,0.00011254,2]
[348134089,1736349058140,-500.0,0.00011254,2]
[348134090,1736349058149,-1432.7,0.00011254,2]
[348134091,1736349058159,-527.56,0.00011254,2]
[348134092,1736349058168,-500.0,0.00011254,2]
[348134093,1736349058178,-500.0,0.00011254,2]
[348134094,1736349058191,-363.61234909,0.00011254,2]
[348134095,1736349058201,-1129.83,0.00011254,2]
[348134096,1736349058210,-710.52,0.00011254,2]
[348134097,1736349058220,-500.0,0.00011254,2]
[348134098,1736349058232,-577.49,0.00011254,2]
[348134099,1736349058241,-735.73,0.00011254,2]
[348134100,1736349058252,-500.0,0.00011254,2]
[348134101,1736349058261,-500.0,0.00011254,2]
[348134102,1736349058272,-788.75,0.00011254,2]
[348134103,1736349058282,-500.0,0.00011254,2]
[348134104,1736349058292,-500.0,0.00011254,2]
[348134105,1736349058303,-651.89,0.00011254,2]
[348134106,1736349058312,-622.92726068,0.00011254,2]
[348134107,1736349058323,-500.0,0.00011254,2]
[348134108,1736349058334,-572.85,0.00011254,2]
[348134109,1736349058343,-555.85,0.00011254,2]
[348134110,1736349058353,-500.0,0.00011254,2]
[348134111,1736349058571,-500.0,0.00011254,2]
[348134112,1736349058581,-500.0,0.00011254,2]
[348134113,1736349058592,-500.0,0.00011254,2]
[348134114,1736349058601,-500.0,0.00011254,2]
[348134115,1736349058610,-500.0,0.00011254,2]
[348134116,1736349058620,-500.0,0.00011254,2]
[348134117,1736349058631,-500.0,0.00011254,2]
[348134118,1736349058641,-535.98,0.00011254,2]
[348134119,1736349058650,-500.0,0.00011254,2]
[348134120,1736349058660,-500.0,0.00011254,2]
[348134121,1736349058669,-751.03,0.00011254,2]
[348134122,1736349058678,-500.0,0.00011254,2]
[348134123,1736349058687,-500.0,0.00011254,2]
[348134124,1736349058697,-500.0,0.00011254,2]
[348134125,1736349058707,-500.0,0.00011254,2]
[348134126,1736349058716,-714.42,0.00011254,2]
[348134127,1736349058728,-500.0,0.00011254,2]
[348134128,1736349058737,-500.0,0.00011254,2]
[348134129,1736349058747,-500.0,0.00011254,2]
[348134130,1736349058759,-1917.71,0.00011254,2]
[348134131,1736349058768,-500.0,0.00011254,2]
[348134132,1736349058777,-3686.07,0.00011254,2]
[348134133,1736349058788,-500.0,0.00011254,2]
[348134134,1736349058798,-500.0,0.00011254,2]
[348134135,1736349058808,-500.0,0.00011254,2]
[348134136,1736349058817,-500.0,0.00011254,2]
[348134137,1736349058826,-500.0,0.00011254,2]
[348134138,1736349058836,-3390.06,0.00011254,2]
[348134139,1736349058847,-500.0,0.00011254,2]
[348134140,1736349058856,-500.0,0.00011254,2]
[348134141,1736349058866,-2650.65,0.00011254,2]
[348134142,1736349058875,-517.67,0.00011254,2]
[348134143,1736349058884,-902.92,0.00011254,2]
[348134144,1736349058894,-500.0,0.00011254,2]
[348134145,1736349058903,-500.0,0.00011254,2]
[348134146,1736349058913,-3156.02,0.00011254,2]
[348134147,1736349058922,-500.0,0.00011254,2]
[348134148,1736349058931,-500.0,0.00011254,2]
[348134149,1736349058941,-500.0,0.00011254,2]
[348134150,1736349058951,-642.86,0.00011254,2]
[348134151,1736349058961,-500.0,0.00011254,2]
[348134152,1736349058970,-500.0,0.00011254,2]
[348134153,1736349058981,-500.0,0.00011254,2]
[348134154,1736349058991,-709.58,0.00011254,2]
[348134155,1736349059001,-28919.4624205,0.00011256,2]
[348134156,1736349059051,-325.95661418,0.00011256,2]
[348134157,1736349059064,-4919.92499996,0.00011256,2]
[348134158,1736349059075,-496.302152,0.00011256,2]
[348134159,1736349059086,-827.64663816,0.00011256,2]
[348134160,1736349059097,-1128.2971998,0.00011256,2]
[348134161,1736349304255,156.0,0.00011256,30]
[348134162,1736349603535,156.0,0.00011256,30]
[348134998,1736350203966,156.18856685,0.00011256,30]
[348135028,1736350231814,-540.72,8.219e-05,2]
[348135029,1736350231824,-1000.0,8.627e-05,2]
[348135030,1736350231834,-972.64919445,8.772e-05,2]
[348135031,1736350231846,-5344.48080555,8.772e-05,2]
[348135032,1736350231856,-189.06,8.774e-05,2]
[348135033,1736350231866,-250.0,8.845e-05,2]
[348135034,1736350231876,-167.57,8.893e-05,2]
[348135035,1736350231886,-987.24,9.005e-05,2]
[348135036,1736350231898,-300.0,9.036e-05,2]
[348135037,1736350231907,-987.14,9.037e-05,2]
[348135038,1736350231916,-9118.0,9.037e-05,2]
[348135039,1736350231925,-250.0,9.037e-05,2]
[348135040,1736350231936,-203.86480364,9.037e-05,2]
[348135041,1736350231946,-1004.73,9.092e-05,2]
[348135042,1736350231955,-997.94,9.106e-05,2]
[348135043,1736350231965,-997.53,9.124e-05,2]
[348135044,1736350231974,-424.09,9.136e-05,2]
[348135045,1736350231984,-1019.0,9.14e-05,2]
[348135046,1736350231993,-996.45,9.167e-05,2]
[348135047,1736350232002,-1005.6,9.212e-05,2]
[348135048,1736350232012,-981.2,9.245e-05,2]
[348135049,1736350232022,-988.65,9.292e-05,2]
[348135050,1736350232031,-989.4,9.359e-05,2]
[348135051,1736350232041,-880.6151479,9.386e-05,2]
[348135052,1736350232054,-203.86480364,9.423e-05,2]
[348135053,1736350232065,-150.0,9.503e-05,2]
[348135054,1736350232075,-1007.85,9.504e-05,2]
[348135055,1736350232085,-808.42433037,9.504e-05,2]
[348135056,1736350232104,-185.58566963,9.504e-05,2]
[348135057,1736350232114,-919.53056422,9.504e-05,2]
[348135058,1736350232125,-91.80943578,9.504e-05,2]
[348135059,1736350232137,-998.37,9.504e-05,2]
[348135060,1736350232149,-1002.88,9.504e-05,2]
[348135061,1736350232158,-323.04056422,9.504e-05,2]
[348135062,1736350232172,-688.82943578,9.504e-05,2]
[348135063,1736350232181,-988.1,9.504e-05,2]
[348135064,1736350232190,-990.24,9.504e-05,2]
[348135065,1736350232200,-1000.0,9.705e-05,2]
[348135066,1736350232209,-14427.30316018,9.809e-05,2]
[348135067,1736350232220,-109.22387564,9.809e-05,2]
[348135068,1736350232230,-150.48753891,9.809e-05,2]
[348135069,1736350232242,-53.37726473,9.809e-05,2]
[348135070,1736350232251,-996.31,9.809e-05,2]
[348135071,1736350232261,-1017.29,9.809e-05,2]
[348135072,1736350232271,-988.31,9.809e-05,2]
[348135073,1736350232280,-1006.66,9.809e-05,2]
[348135074,1736350232289,-1066.48707247,9.886e-05,2]
[348135075,1736350232301,-314.22734343,9.886e-05,2]
[348135076,1736350232388,-558.64076234,9.886e-05,2]
[348135077,1736350232400,-66.51742176,9.886e-05,2]
[348135078,1736350232410,-268.7913,9.899e-05,2]
[348135079,1736350232419,-420.0,9.939e-05,2]
[348135080,1736350232429,-521.75568666,9.97e-05,2]
[348135081,1736350232438,-521.75568666,9.971e-05,2]
[348135082,1736350232449,-521.75568666,9.973e-05,2]
[348135083,1736350232459,-33.22175993,9.98e-05,2]
[348135084,1736350232471,-288.58508549,9.98e-05,2]
[348135085,1736350232480,-238.15751789,9.98e-05,2]
[348135086,1736350232492,-283.59816877,9.98e-05,2]
[348135087,1736350232501,-24.23523123,9.98e-05,2]
[348135088,1736350232513,-297.57161419,9.98e-05,2]
[348135089,1736350232523,-199.28931298,9.981e-05,2]
[348135090,1736350232535,-322.46637368,9.981e-05,2]
[348135091,1736350232546,-19.55071661,9.985e-05,2]
[348135092,1736350232559,-616.29928339,9.985e-05,2]
[348135093,1736350232569,-534.17,9.985e-05,2]
[348135094,1736350232579,-1223.98,9.985e-05,2]
[348135095,1736350232588,-741.82,9.986e-05,2]
[348135096,1736350232598,-1409.99,9.986e-05,2]
[348135097,1736350232607,-1278.26,9.986e-05,2]
[348135098,1736350232617,-2676.03,9.986e-05,2]
[348135099,1736350232627,-500.0,9.986e-05,2]
[348135100,1736350232636,-1019.26,9.986e-05,2]
[348135101,1736350232645,-1070.98,9.986e-05,2]
[348135102,1736350232655,-699.97,9.986e-05,2]
[348135103,1736350232664,-1000.0,9.986e-05,2]
[348135104,1736350232673,-777.78,9.986e-05,2]
[348135105,1736350232682,-500.0,9.986e-05,2]
[348135106,1736350232692,-2001.46,9.986e-05,2]
[348135107,1736350232701,-1904.18,9.986e-05,2]
[348135109,1736350232711,-321.80684542,9.988e-05,2]
[348135111,1736350232720,-521.75568666,9.989e-05,2]
[348135113,1736350232729,-321.80684542,9.991e-05,2]
[348135115,1736350232738,-500.0,9.994e-05,2]
[348135117,1736350232748,-84.22811189,9.994e-05,2]
[348135120,1736350232765,-1389.08188811,9.994e-05,2]
[348135122,1736350232778,-1011.35,9.995e-05,2]
[348135124,1736350232787,-321.80684542,9.996e-05,2]
[348135126,1736350232797,-321.80684542,9.998e-05,2]
[348135128,1736350232806,-9026.14292377,9.999e-05,4]
[348135130,1736350232815,-690.35,9.999e-05,2]
[348135132,1736350232824,-500.0,9.999e-05,2]
[348135134,1736350232834,-666.48,9.999e-05,2]
[348135136,1736350232843,-500.0,9.999e-05,2]
[348135138,1736350232852,-500.0,9.999e-05,2]
[348135140,1736350232862,-500.0,9.999e-05,2]
[348135142,1736350232871,-977.3,9.999e-05,2]
[348135144,1736350232880,-500.0,9.999e-05,2]
[348135146,1736350232890,-75082.10807017,0.0001,2]
[348135149,1736350232904,-800.0,0.0001,2]
[348135151,1736350232915,-28450.9504968,0.0001,2]
[348135153,1736350232925,-397.500005,0.0001,2]
[348135155,1736350232938,-1029.169583,0.0001,2]
[348135157,1736350232950,-4602.1,0.0001,2]
[348135159,1736350232962,-425.9662966,0.0001,2]
[348135164,1736350233001,-3608.28154348,0.0001,2]
[348135167,1736350233012,-914.26346909,0.0001,2]
[348135288,1736350237549,-500.0,9.999e-05,2]
[348135289,1736350237559,-3.03113123,9.999e-05,2]
[348135290,1736350237571,-496.96886877,9.999e-05,2]
[348135291,1736350237581,-500.0,9.999e-05,2]
[348135292,1736350237591,-14821.0833384,0.0001,2]
[348135293,1736350237600,-41111.40905813,0.0001,2]
[348135294,1736350237610,-1686.81150001,0.0001,2]
[348135295,1736350237620,-201.67084512,0.0001,2]
[348135296,1736350237630,-1016.16,0.00010116,2]
[348135297,1736350237639,-985.1,0.00010116,2]
[348135298,1736350237657,-1475.22,0.00010145,2]
[348135299,1736350237667,-3095.36,0.00010145,2]
[348135300,1736350237677,-1376.99,0.00010145,2]
[348135301,1736350237686,-1658.43,0.00010155,2]
[348135302,1736350237696,-1306.68,0.00010155,2]
[348135303,1736350237705,-1240.17,0.00010155,2]
[348135304,1736350237714,-500.0,0.00010155,2]
[348135305,1736350237723,-565.71,0.00010155,2]
[348135306,1736350237733,-2048.08,0.00010155,2]
[348135307,1736350237741,-765.25,0.00010155,2]
[348135308,1736350237751,-500.0,0.00010155,2]
[348135309,1736350237760,-500.0,0.00010155,2]
[348135310,1736350237769,-1363.56,0.00010155,2]
[348135311,1736350237778,-500.0,0.00010155,2]